fUSD/lending_fUSD_20240424
["ID","MTS","AMOUNT","RATE_DAILY","PERIOD"]
[323366884,1713932516375,-150.79,0.00010928,2]
[323366885,1713932516399,-300.0,0.00010957,2]
[323366886,1713932516423,-150.0,0.00010958,2]
[323366887,1713932516447,-150.0,0.00010958,2]
[323366888,1713932516471,-5931.72772319,0.00010959,2]
[323366889,1713932556707,-1890.89003189,0.000102,2]
[323366890,1713932556735,-412.60227681,0.00010959,2]
[323366891,1713932556760,-196.5076913,0.00010959,3]
[323366896,1713933002335,150.0,8.5e-05,2]
[323366897,1713933002359,150.0,8.5e-05,2]
[323366898,1713933002387,299.85850102,8.5e-05,2]
[323366899,1713933002417,500.14149898,8.5e-05,2]
[323366900,1713933031433,-370.06678389,8.669e-05,2]
[323366901,1713933031442,-51.88266208,8.67e-05,2]
[323366902,1713933031454,-321.53283359,8.67e-05,2]
[323366903,1713933031463,-298.68,8.674e-05,2]
[323366904,1713933031472,-520.0,0.00010516,2]
[323366905,1713933031482,-200.0,0.00010608,2]
[323366906,1713933031491,-150.79,0.00010678,2]
[323366907,1713933031501,-150.79,0.0001074,2]
[323366908,1713933031510,-150.79,0.00010802,2]
[323366909,1713933031519,-150.79,0.00010864,2]
[323366910,1713933031528,-150.79,0.00010926,2]
[323366911,1713933031537,-298.68,0.00010937,2]
[323366912,1713933031547,-1803.49,0.00010959,3]
[323366913,1713933031556,-3701.57564669,0.00010959,2]
[323366914,1713933031566,-291.47,0.00010967,2]
[323366915,1713933031575,-150.79,0.00010987,2]
[323366916,1713933031584,-150.99,0.00010987,2]
[323366917,1713933031594,-150.79,0.00011049,2]
[323366918,1713933031603,-150.79,0.00011111,2]
[323366919,1713933031614,-75.75799928,0.00011128,2]
[323366922,1713933031912,-466.24200072,0.00011128,2]
[323366924,1713933031923,-150.79,0.00011173,2]
[323366927,1713933031933,-150.79,0.00011235,2]
[323366929,1713933031944,-150.0,0.00011282,2]
[323366930,1713933031954,-1000.0,0.00011283,2]
[323366931,1713933031965,-3170.99420645,0.00011283,2]
[323366932,1713933031976,-1474.0,0.00011364,2]
[323366933,1713933031986,-214.0,0.00011364,2]
[323366934,1713933031995,-1640.0,0.00011364,2]
[323366935,1713933032005,-443.0,0.00011364,2]
[323366936,1713933032015,-1134.999,0.00011364,2]
[323366937,1713933032025,-195.0,0.00011364,2]
[323366938,1713933032036,-4210.4,0.00011364,4]
[323366939,1713933032046,-169.41,0.00011364,2]
[323366940,1713933032056,-157.87,0.00011364,2]
[323366941,1713933032066,-150.99,0.00011364,2]
[323366942,1713933032076,-1394.0,0.00011364,2]
[323366943,1713933032086,-969.0,0.00011364,2]
[323366944,1713933032096,-1056.0,0.00011364,2]
[323366945,1713933032108,-500.0,0.000114,4]
[323366946,1713933032119,-1000.0,0.000115,4]
[323366947,1713933032129,-1500.0,0.000116,4]
[323366948,1713933032138,-600.0,0.00011674,2]
[323366949,1713933032148,-449.01235933,0.0001168,2]
[323366950,1713933032158,-2000.0,0.000117,4]
[323366951,1713933032167,-13496.9614,0.00011779,2]
[323366952,1713933032177,-30468.3001,0.0001178,2]
[323366953,1713933032188,-181.08957856,0.0001178,2]
[323366954,1713933032202,-155.69333811,0.0001178,2]
[323366955,1713933032211,-180.48356642,0.00011787,2]
[323366956,1713933032222,-876.09015164,0.00011787,2]
[323366957,1713933032231,-23737.06614595,0.0001179,2]
[323366958,1713933032254,-531.52725657,0.0001179,2]
[323366959,1713933032279,-591.826501,0.0001179,2]
[323366960,1713933032325,-272.22282296,0.0001179,2]
[323366961,1713933032362,-1007.15591784,0.0001179,2]
[323366962,1713933032373,-5423.17188763,0.0001179,2]
[323366963,1713933032382,-189.0088229,0.000118,2]
[323366964,1713933032394,-810.9911771,0.000118,2]
[323366965,1713933032404,-1000.0,0.000118,2]
[323366966,1713933032418,-1000.0,0.000118,2]
[323366967,1713933032427,-1000.0,0.000118,2]
[323366968,1713933032437,-508.35233945,0.000118,2]
[323366969,1713933032451,-491.64766055,0.000118,2]
[323366970,1713933032461,-656.0,0.000118,2]
[323366971,1713933032471,-656.0,0.000118,2]
[323366972,1713933032481,-656.0,0.000118,2]
[323366973,1713933032491,-837.47288645,0.000118,2]
[323366974,1713933032506,-168.52711355,0.000118,2]
[323366975,1713933032515,-1000.0,0.000118,2]
[323366976,1713933032525,-1000.0,0.000118,2]
[323366977,1713933032534,-1000.0,0.000118,2]
[323366978,1713933032543,-1006.0,0.000118,2]
[323366979,1713933032552,-1000.0,0.000118,2]
[323366980,1713933032561,-321.33788645,0.000118,2]
[323366981,1713933032589,-678.66211355,0.000118,2]
[323366982,1713933032599,-2500.0,0.000118,4]
[323366983,1713933032608,-520.0,0.00011831,2]
[323366984,1713933032620,-288.3825673,0.00011877,2]
[323366985,1713933032629,-344.46903544,0.00011878,2]
[323366986,1713933032638,-1001.097,0.00011878,2]
[323366987,1713933032648,-1249.98114734,0.00011879,2]
[323366988,1713933032657,-344.74886808,0.00011879,2]
[323366989,1713933032667,-262.4977061,0.00011879,2]
[323366990,1713933032677,-1771.18763833,0.00011879,2]
[323366991,1713933032689,-1633.10754973,0.00011879,2]
[323366992,1713933032702,-602.58454772,0.00011879,2]
[323366993,1713933032715,-3787.627386,0.00011879,2]
[323366994,1713933037739,-173.02002738,0.00011869,2]
[323366995,1713933037748,-173.02002738,0.0001187,2]
[323366996,1713933037756,-160.90234264,0.00011879,2]
[323366997,1713933037765,-919.00207494,0.00011879,2]
[323366998,1713933037788,-428.61941707,0.00011879,2]
[323366999,1713933037800,-315.19030927,0.00011879,2]
[323367000,1713933037831,-3254.50000003,0.00011879,2]
[323367001,1713933037856,-692.79472096,0.00011879,2]
[323367002,1713933037873,-1220.20775906,0.00011879,2]
[323367003,1713933037884,-406.46916604,0.00011879,2]
[323367004,1713933037931,-0.00032287,0.00011879,2]
[323367027,1713933039522,-200860.76652161,0.00011879,2]
[323367028,1713933039741,-348.64959659,0.00011879,2]
[323367029,1713933039799,-451.9375,0.00011879,2]
[323367030,1713933039911,-959.42045402,0.00011879,2]
[323367031,1713933039923,-1288.08427097,0.00011879,2]
[323367032,1713933039967,-1424.40055823,0.00011879,2]
[323367048,1713933042545,-1126.43968259,0.00011879,2]
[323367050,1713933042557,-908.9989597,0.00011879,2]
[323367055,1713933042601,-1067.81353758,0.00011879,2]
[323367057,1713933042612,-455.24917089,0.00011879,2]
[323367065,1713933045511,-1021.19398732,0.00010959,2]
[323367066,1713933045523,-1446.52311048,0.00010959,2]
[323367067,1713933045533,-348.84430873,0.00011879,2]
[323367068,1713933045574,-1264.80518195,0.00011879,2]
[323367069,1713933045586,-727.95,0.00011879,2]
[323367070,1713933045682,-959.66047797,0.00011879,2]
[323367071,1713933045693,-360.08234564,0.00011879,2]
[323367072,1713933045740,-1237.64034,0.00011879,2]
[323367073,1713933045796,-3431.15037639,0.00011879,2]
[323367074,1713933045808,-1909.74,0.00011879,2]
[323367528,1713933763046,-311.17957973,8.868e-05,2]
[323367529,1713933763070,-404.80228358,8.869e-05,2]
[323367530,1713933763095,-1379.94434869,8.87e-05,2]
[323367531,1713933763118,-370.06678389,8.871e-05,2]
[323367532,1713933763143,-34.00700411,8.883e-05,2]
[323367533,1713933810796,-266.40299589,8.883e-05,2]
[323367534,1713933810826,-275.62,0.00010705,2]
[323367535,1713933810850,-688.0,0.00010737,2]
[323367536,1713933810875,-11569.97700411,0.00010742,2]
[323367544,1713934143807,-370.06678389,8.833e-05,2]
[323367545,1713934143835,-162.12456104,8.833e-05,2]
[323367546,1713934143861,-67.80865507,8.834e-05,2]
[323367547,1713934174229,-217.57134493,8.834e-05,2]
[323367548,1713934231616,-179.1,0.00010589,2]
[323367550,1713934231627,-150.0,0.00010677,2]
[323367552,1713934231636,-449.6,0.00010688,2]
[323367553,1713934231645,-902.45,0.00010736,2]
[323367554,1713934231655,-12320.02299589,0.00010742,2]
[323367555,1713934231664,-2056.43091483,0.00010742,2]
[323367556,1713934231672,-500.0,0.00010805,2]
[323367557,1713934231681,-176.58,0.00010899,2]
[323367558,1713934231692,-669.59,0.00010959,2]
[323367560,1713934231701,-8198.48,0.00010959,2]
[323367562,1713934231710,-819.28,0.00010959,3]
[323367564,1713934231719,-244.61,0.00011,2]
[323367565,1713934231728,-285.38,0.00011098,2]
[323367566,1713934231738,-4767.33049081,0.00011099,2]
[323367567,1713934231750,-2401.13681457,0.00011099,2]
[323367568,1713934231804,-5444.23205157,0.00011099,2]
[323367569,1713934231813,-910.21,0.000111,2]
[323367570,1713934231823,-303.13,0.000111,2]
[323367571,1713934231837,-910.21,0.000111,2]
[323367572,1713934231846,-162.12456104,0.00011276,2]
[323367573,1713934231855,-1270.20375856,0.00011277,5]
[323367574,1713934231864,-268.44141555,0.00011283,2]
[323367575,1713934231874,-1151.17,0.00011283,2]
[323367576,1713934231883,-847.2,0.000113,2]
[323367577,1713934231893,-1067.46,0.000113,2]
[323367578,1713934231902,-845.3,0.000113,2]
[323367579,1713934231913,-256.1496,0.00011366,2]
[323367580,1713934231923,-1255.0,0.00011466,2]
[323367581,1713934231932,-542.0,0.00011466,2]
[323367582,1713934231942,-1629.62816608,0.00011466,2]
[323367583,1713934231967,-321.37183392,0.00011466,2]
[323367584,1713934231976,-257.0,0.00011466,2]
[323367585,1713934231986,-150.0,0.00011466,2]
[323367586,1713934231995,-479.27142585,0.00011466,2]
[323367587,1713934232006,-301.44505381,0.00011466,2]
[323367591,1713934232036,-1663.28352034,0.00011466,2]
[323367593,1713934232045,-1265.4726777,0.00011466,2]
[323367597,1713934232079,-538.72781616,0.00011466,2]
[323367600,1713934232095,-438.97877864,0.00011466,2]
[323367602,1713934232107,-405.20748901,0.00011466,2]
[323367604,1713934232118,-344.1262584,0.00011466,2]
[323367626,1713934237735,-125.48698009,0.00011466,2]
[323367627,1713934237746,-585.24601991,0.00011466,2]
[323367628,1713934237800,-888.75398009,0.00011466,2]
[323367629,1713934237811,-402.0,0.00011466,2]
[323367630,1713934237821,-150.0,0.00011466,2]
[323367631,1713934237833,-214.0,0.00011466,2]
[323367632,1713934237846,-1640.0,0.00011466,2]
[323367633,1713934237857,-1140.0,0.00011466,2]
[323367634,1713934237868,-443.0,0.00011466,2]
[323367635,1713934237880,-195.0,0.00011466,2]
[323367636,1713934237891,-5729.0,0.00011466,2]
[323367637,1713934237902,-4386.2448789,0.00011466,2]
[323367638,1713934237964,-1506.7551211,0.00011466,2]
[323367639,1713934237974,-2303.64636466,0.00011466,2]
[323367640,1713934238005,-401.35363534,0.00011466,2]
[323367641,1713934238015,-27.27367026,0.00011466,2]
[323367642,1713934238163,-691.09300298,0.00011466,2]
[323367643,1713934238197,-16934.04267543,0.00011466,2]
[323367644,1713934238209,-480.69772023,0.00011466,2]
[323367651,1713934239836,-13866.83461351,0.00011466,2]
[323367652,1713934240014,-1153.5,0.00011466,2]
[323367653,1713934240084,-1034.268095,0.00011466,2]
[323367654,1713934240096,-496.27636977,0.00011466,2]
[323367690,1713934242784,-3005.01385282,0.00011466,2]
[323367691,1713934242793,-1056.0,0.00011466,2]
[323367692,1713934242803,-150.032,0.00011466,2]
[323367693,1713934242812,-150.045,0.00011466,2]
[323367694,1713934242821,-1146.67901252,0.00011641,2]
[323367695,1713934242831,-3642.7894,0.00011679,2]
[323367696,1713934242842,-268.88,0.000117,2]
[323367697,1713934242853,-300.0,0.000117,2]
[323367698,1713934242863,-2500.0,0.00011777,2]
[323367699,1713934242873,-303.1058,0.00011779,2]
[323367700,1713934242882,-4160.9683,0.00011779,2]
[323367701,1713934242892,-9226.72440921,0.00011779,2]
[323367702,1713934242902,-155.6933381,0.00011779,2]
[323367703,1713934242911,-1000.0,0.0001178,2]
[323367704,1713934242921,-4968.42629154,0.00011781,2]
[323367705,1713934242931,-584.06010108,0.00011781,2]
[323367706,1713934242941,-150.0,0.00011863,2]
[323367707,1713934242950,-215.95019856,0.00011869,2]
[323367708,1713934242961,-54751.97461588,0.00011876,2]
[323367709,1713934242971,-7340.64841283,0.00011877,2]
[323367710,1713934242980,-423.28632635,0.00011877,2]
[323367711,1713934242990,-1118.08577811,0.00011877,2]
[323367712,1713934242999,-236.51827636,0.00011877,2]
[323367713,1713934243009,-5000.0,0.00011877,2]
[323367714,1713934243018,-208.56597555,0.00011877,2]
[323367715,1713934243027,-322.28170193,0.00011877,2]
[323367716,1713934243037,-157.92217414,0.00011877,2]
[323367717,1713934243046,-201.86731046,0.00011877,2]
[323367718,1713934243056,-424.89637205,0.00011877,2]
[323367719,1713934243065,-782.85557301,0.00011877,2]
[323367720,1713934243075,-969.50498111,0.00011877,2]
[323367721,1713934243084,-272.92954322,0.00011877,2]
[323367722,1713934243095,-2808.22325027,0.00011878,2]
[323367723,1713934243106,-1430497.36109928,0.00011879,2]
[323367724,1713934243116,-158456.94026803,0.00011879,2]
[323367725,1713934243126,-828.1247,0.00011879,2]
[323367726,1713934243135,-92602.29616119,0.0001188,2]
[323367727,1713934243187,-373.5132,0.0001188,2]
[323367728,1713934243215,-901202.47418991,0.0001188,2]
[323367729,1713934243266,-1256.33139243,0.0001188,2]
[323367732,1713934243317,-3349.4647897,0.0001188,2]
[323367738,1713934245717,-162.12456104,0.00011877,2]
[323367739,1713934245728,-330.28217024,0.0001188,2]
[323367740,1713934245892,-822.46362864,0.0001188,2]
[323367741,1713934246064,-6327.01232262,0.0001188,2]
[323367742,1713934246076,-818.41203818,0.0001188,2]
[323367743,1713934246094,-33594.56099999,0.0001188,2]
[323367744,1713934446140,268.33398098,0.00025,120]
[323367790,1713935237212,-155.0,8.831e-05,2]
[323367791,1713935237238,-370.06678389,8.831e-05,2]
[323367792,1713935237261,-404.80228358,8.832e-05,2]
[323367793,1713935237285,-162.12456104,8.833e-05,2]
[323367794,1713935237309,-236.56224941,8.833e-05,2]
[323367795,1713935237334,-1671.44412208,8.834e-05,2]
[323369263,1713935386286,-1071.40050663,8.834e-05,2]
[323369264,1713935386311,-128.59949337,8.846e-05,2]
[323369266,1713935422700,-1071.40050663,8.846e-05,2]
[323369267,1713935422726,-128.59949337,8.846e-05,2]
[323369303,1713935431843,-31.98101326,8.846e-05,2]
[323369306,1713935431853,-359.68,0.00010669,2]
[323369310,1713935431863,-150.0,0.00010677,2]
[323369313,1713935431874,-220.49,0.00010706,2]
[323369315,1713935431883,-155.0,0.00010717,2]
[323369317,1713935431894,-162.12456104,0.00010718,2]
[323369319,1713935431905,-150.0,0.00010719,2]
[323369321,1713935431915,-300.0,0.00010719,2]
[323369322,1713935431925,-2614.98,0.0001072,2]
[323369323,1713935431934,-190.1459252,0.0001072,2]
[323369324,1713935431972,-967.9540748,0.0001072,2]
[323369325,1713935431982,-168.01,0.00010764,2]
[323369326,1713935431992,-640.32,0.00010928,2]
[323369327,1713935432002,-150.99,0.00010928,2]
[323369328,1713935432012,-499.99,0.00010928,2]
[323369329,1713935432022,-289.18,0.0001111,2]
[323369330,1713935432031,-909.959,0.00011255,2]
[323369331,1713935432041,-590.36338239,0.00011255,2]
[323369332,1713935432075,-2924.74005624,0.00011255,2]
[323369333,1713935432089,-684.71908266,0.00011255,2]
[323369334,1713935432109,-1647.10744656,0.00011255,2]
[323369335,1713935432121,-46.07003215,0.00011255,2]
[323369336,1713935432131,-9954.20196785,0.00011255,2]
[323369337,1713935432160,-22960.50001,0.00011255,2]
[323369338,1713935432173,-327.25,0.00011255,2]
[323369339,1713935432223,-432.51,0.00011255,2]
[323369355,1713935438082,-1870.04361601,0.00010668,2]
[323369356,1713935438092,-832.84402215,0.00011255,2]
[323369357,1713935438101,-4008.51236184,0.00011255,2]
[323369358,1713935438113,-1720.48763816,0.00011255,2]
[323369359,1713935438122,-1111.415,0.00011255,2]
[323369360,1713935438132,-445.29736181,0.00011466,2]
[323369361,1713935438190,-341.09263819,0.00011466,2]
[323369362,1713935438201,-461.0,0.00011466,2]
[323369363,1713935438211,-2294.0,0.00011466,2]
[323369364,1713935438223,-969.0,0.00011466,2]
[323369365,1713935438233,-1393.0,0.00011466,2]
[323369366,1713935438242,-1255.0,0.00011466,2]
[323369368,1713935438251,-391.173,0.00011466,2]
[323369369,1713935438261,-609.0,0.00011466,2]
[323369370,1713935438270,-437.0,0.00011466,2]
[323369371,1713935438279,-638.53946828,0.00011466,2]
[323369372,1713935438290,-189.51353172,0.00011466,2]
[323369373,1713935438301,-257.0,0.00011466,2]
[323369375,1713935438311,-1564.1470856,0.00011466,2]
[323369377,1713935438322,-386.8529144,0.00011466,2]
[323369379,1713935438332,-3118.0,0.00011466,2]
[323369381,1713935438341,-1675.887913,0.00011466,2]
[323369396,1713935438476,-768.112087,0.00011466,2]
[323369398,1713935438485,-150.0,0.00011466,2]
[323369400,1713935438494,-402.0,0.00011466,2]
[323369402,1713935438504,-1474.0,0.00011466,2]
[323369404,1713935438513,-214.0,0.00011466,2]
[323369406,1713935438522,-150.0,0.00011466,2]
[323369408,1713935438532,-1640.0,0.00011466,2]
[323369410,1713935438541,-1140.0,0.00011466,2]
[323369412,1713935438551,-443.0,0.00011466,2]
[323369414,1713935438560,-285.918,0.00011466,2]
[323369416,1713935438569,-11370.69751546,0.00011679,2]
[323369585,1713935440124,-1870.04361601,0.00010668,2]
[323369587,1713935440134,-5534.17968454,0.00011679,2]
[323369589,1713935440143,-7500.0,0.00011679,2]
[323369591,1713935440152,-879.53292,0.0001176,2]
[323369593,1713935440162,-17990.20390408,0.00011768,2]
[323369595,1713935440171,-4432.16870759,0.00011775,2]
[323369597,1713935440180,-531.7411,0.00011776,2]
[323369599,1713935440190,-480.0523,0.00011776,2]
[323369601,1713935440199,-250.0999,0.00011776,2]
[323369603,1713935440208,-1000.0,0.00011776,2]
[323369605,1713935440219,-237719.828,0.00011779,2]
[323369607,1713935440230,-1000.0,0.0001178,2]
[323369609,1713935440238,-9868.08652955,0.0001178,2]
[323369611,1713935440249,-1000.0,0.00011781,2]
[323369613,1713935440258,-1000.0,0.00011781,2]
[323369614,1713935440268,-1000.0,0.00011781,2]
[323369617,1713935440278,-1000.0,0.00011781,2]
[323369618,1713935440288,-213.0,0.00011781,2]
[323369621,1713935440298,-1000.0,0.00011781,2]
[323369622,1713935440308,-1000.0,0.00011781,2]
[323369624,1713935440317,-1000.0,0.00011781,2]
[323369626,1713935440327,-1000.0,0.00011781,2]
[323369628,1713935440336,-1000.0,0.00011781,2]
[323369630,1713935440345,-1000.0,0.00011781,2]
[323369632,1713935440354,-1000.0,0.00011781,2]
[323369634,1713935440364,-1000.0,0.00011781,2]
[323369636,1713935440373,-1000.0,0.00011781,2]
[323369638,1713935440382,-1000.0,0.00011781,2]
[323369641,1713935440392,-1000.0,0.00011781,2]
[323369642,1713935440401,-1000.0,0.00011781,2]
[323369644,1713935440410,-1000.0,0.00011781,2]
[323369646,1713935440420,-215.95019856,0.00011786,2]
[323369648,1713935440429,-210.0,0.00011791,2]
[323369650,1713935440438,-501176.21389136,0.00011796,2]
[323369652,1713935440447,-404.61817044,0.00011798,2]
[323369654,1713935440456,-236.47430331,0.00011798,2]
[323369656,1713935440466,-369.92116821,0.00011798,2]
[323369658,1713935440475,-693.04588733,0.00011798,2]
[323369660,1713935440484,-3421.93227524,0.00011799,2]
[323369662,1713935440493,-750136.12713796,0.000118,5]
[323369664,1713935440502,-1815.9026777,0.00011868,2]
[323369667,1713935440512,-266.7907991,0.00011868,2]
[323369668,1713935440522,-1498.6208311,0.00011872,2]
[323369671,1713935440531,-3528.26702456,0.00011876,2]
[323369672,1713935440541,-1445.08497739,0.00011877,2]
[323369675,1713935440550,-1571.91439866,0.00011877,2]
[323369677,1713935440560,-1923.75658816,0.00011877,2]
[323369679,1713935440569,-340.6255,0.00011877,2]
[323369680,1713935440579,-2478.22537668,0.00011877,2]
[323369682,1713935440588,-892.85048398,0.00011877,2]
[323369685,1713935440597,-332.30124812,0.00011877,2]
[323369687,1713935440606,-1186.20667968,0.00011877,2]
[323369689,1713935440616,-1340.07171355,0.00011878,2]
[323369691,1713935440625,-17990.203904,0.00011878,2]
[323369693,1713935440634,-4221.46162223,0.00011879,2]
[323369695,1713935440643,-848969.35707051,0.00011879,2]
[323369697,1713935440653,-245.72850022,0.0001188,2]
[323369699,1713935440662,-1075338.59984662,0.0001188,2]
[323369708,1713935440743,-367.5269479,0.0001188,2]
[323369991,1713935443227,-13080.0,0.0001188,2]
[323370017,1713935443343,-1808671.65949126,0.0001188,2]
[323370020,1713935443352,-9868.08652952,0.00011882,2]
[323370023,1713935443362,-2920.0,0.0001189,2]
[323370026,1713935443371,-1001.6671,0.00011899,2]
[323370029,1713935443380,-195.33,0.00011918,2]
[323370032,1713935443389,-1577.97,0.00011918,2]
[323370035,1713935443398,-275.24,0.0001192,2]
[323370038,1713935443408,-150.0,0.0001192,2]
[323370041,1713935443417,-150.0,0.0001192,2]
[323370043,1713935443428,-150.0,0.0001192,2]
[323370046,1713935443437,-546.0,0.00011982,2]
[323370049,1713935443448,-9868.08652952,0.00011984,2]
[323370052,1713935443457,-3109.47643895,0.00011987,2]
[323370056,1713935443468,-17990.203904,0.00011988,2]
[323370058,1713935443477,-19514.87011693,0.00012,2]
[323370062,1713935443486,-7999.99,0.00012,2]
[323370065,1713935443495,-4999.99,0.00012,2]
[323370068,1713935443505,-4999.99,0.00012,2]
[323370072,1713935443516,-5000.0,0.00012,2]
[323370076,1713935443526,-8000.0,0.00012,2]
[323370080,1713935443536,-4999.99,0.00012,2]
[323370083,1713935443546,-3998.42,0.00012,2]
[323370087,1713935443558,-1174.85140181,0.00012,2]
[323370090,1713935443567,-8000.0,0.00012,2]
[323370093,1713935443578,-357875.47322085,0.00012,2]
[323370097,1713935443588,-5000.0,0.00012,2]
[323370101,1713935443599,-8000.0,0.00012,2]
[323370104,1713935443608,-2750.0,0.00012,2]
[323370108,1713935443618,-1000.0,0.00012,2]
[323370111,1713935443628,-359.68,0.00012003,2]
[323370114,1713935443638,-3434.51,0.0001201,2]
[323370117,1713935443649,-7999.97,0.0001201,2]
[323370120,1713935443660,-3007.64,0.0001201,2]
[323370123,1713935443669,-5000.0,0.00012013,2]
[323370126,1713935443679,-5000.0,0.00012013,2]
[323370129,1713935443688,-5000.0,0.00012025,2]
[323370132,1713935443697,-5000.0,0.00012025,2]
[323370135,1713935443707,-164.03,0.00012033,2]
[323370138,1713935443718,-5000.0,0.00012038,2]
[323370141,1713935443727,-1001.58,0.00012038,2]
[323370144,1713935443737,-220.49,0.00012044,2]
[323370147,1713935443746,-5000.0,0.0001205,2]
[323370150,1713935443755,-9868.08652952,0.00012085,2]
[323370153,1713935443763,-17990.203904,0.00012098,2]
[323370156,1713935443772,-351.0,0.000121,2]
[323370159,1713935443782,-1000.0,0.000121,2]
[323370162,1713935443791,-1203.97602946,0.00012152,2]
[323370165,1713935443800,-9868.08652952,0.00012187,2]
[323370168,1713935443809,-3323.692847,0.000122,2]
[323370171,1713935443818,-367.91445475,0.000122,2]
[323370174,1713935443827,-17990.203904,0.00012208,2]
[323370178,1713935443836,-159.28690721,0.00012242,2]
[323370179,1713935443847,-1000.0,0.00012266,2]
[323370181,1713935443857,-500.0,0.00012266,2]
[323370183,1713935443866,-1000.0,0.00012267,2]
[323370186,1713935443875,-1000.0,0.00012267,2]
[323370188,1713935443885,-500.0,0.00012267,2]
[323370189,1713935443895,-500.0,0.00012267,2]
[323370192,1713935443904,-9868.08652952,0.00012289,2]
[323370194,1713935443914,-640.32,0.00012294,2]
[323370196,1713935443923,-500.0,0.000123,2]
[323370198,1713935443931,-1009.0,0.000123,2]
[323370200,1713935443941,-279741.98,0.00012314,6]
[323370201,1713935443951,-187142.81,0.00012314,6]
[323370204,1713935443963,-11880.65,0.00012314,6]
[323370205,1713935443973,-258.26,0.00012314,6]
[323370207,1713935443983,-36765.24,0.00012314,6]
[323370209,1713935443992,-33694.53,0.00012314,6]
[323370211,1713935444002,-13491.23,0.00012314,6]
[323370214,1713935444011,-39766.31,0.00012314,6]
[323370242,1713935444273,-17990.203904,0.00012319,2]
[323370245,1713935444282,-10000.0,0.00012328,2]
[323370247,1713935444291,-10000.0,0.00012328,2]
[323370249,1713935444301,-1000.0,0.00012328,2]
[323370251,1713935444311,-153.11846306,0.00012328,2]
[323370253,1713935444319,-151.06,0.00012329,2]
[323370255,1713935444328,-150.0,0.00012329,2]
[323370256,1713935444338,-150.0,0.00012329,2]
[323370259,1713935444348,-300.02,0.00012365,2]
[323370261,1713935444358,-2771.6386144,0.00012365,2]
[323370262,1713935444367,-9868.08652952,0.00012391,2]
[323370263,1713935444377,-500.0,0.000124,2]
[323370264,1713935444385,-17990.203904,0.00012429,2]
[323370265,1713935444394,-150.0,0.00012447,2]
[323370266,1713935444403,-9868.08652952,0.00012493,2]
[323370267,1713935444412,-250.86846927,0.000125,2]
[323370268,1713935444421,-500.0,0.000125,2]
[323370269,1713935444430,-700.0,0.000125,2]
[323370270,1713935444440,-700.0,0.000125,2]
[323370271,1713935444449,-700.0,0.000125,2]
[323370272,1713935444458,-700.0,0.000125,2]
[323370273,1713935444469,-700.0,0.000125,2]
[323370274,1713935444479,-700.0,0.000125,2]
[323370275,1713935444488,-700.0,0.000125,2]
[323370276,1713935444497,-700.0,0.000125,2]
[323370277,1713935444506,-700.0,0.000125,2]
[323370279,1713935444516,-700.0,0.000125,2]
[323370281,1713935444525,-1000.0,0.000125,2]
[323370283,1713935444534,-150.0,0.00012517,2]
[323370285,1713935444543,-16727.18277621,0.00012539,2]
[323370437,1713935447865,-1071.40050663,8.846e-05,2]
[323370438,1713935447879,-489.7,0.00011679,2]
[323370439,1713935447892,-162.12456104,0.00011879,2]
[323370440,1713935447904,-2771.6386144,0.00011879,2]
[323370441,1713935447916,-2243.26964391,0.00011879,2]
[323370442,1713935447929,-1263.02112779,0.00012539,2]
[323370443,1713935447941,-150.0,0.00012541,2]
[323370444,1713935447953,-164.03,0.00012544,2]
[323370445,1713935447969,-1051.57571188,0.00012544,2]
[323370446,1713935447980,-150.0,0.00012579,2]
[323370447,1713935447993,-9868.08652952,0.00012595,2]
[323370448,1713935448006,-1000.0,0.000126,2]
[323370449,1713935448019,-1833.24,0.00012614,2]
[323370450,1713935448031,-910.21,0.00012614,2]
[323370451,1713935448044,-910.21,0.00012614,2]